[Event "Titled Tuesday Blitz January 03 Early 2023"]
[White "Saravana, Krishnan P."]
[Black "Rustemov, Alexander"]
[WhiteFideId "5018382"]
[BlackFideId "4119002"]
[WhiteElo "2284"]
[BlackElo "2525"]
[Result "1/2-1/2"]
[Round "11"]
[TimeControl "180+2"]
[Date "2023.01.03"]
[WhiteClock "0:00:18"]
[BlackClock "0:00:07"]

1. e4 {[%clk 0:02:56]}  e6 {[%clk 0:02:59]} 2. d4 {[%clk 0:02:53]}  d5 {[%clk 0:02:59]} 3. Nd2 {[%clk 0:02:53]}  dxe4 {[%clk 0:02:59]} 4. Nxe4 {[%clk 0:02:53]}  Bd7 {[%clk 0:02:59]} 5. Nf3 {[%clk 0:02:53]}  Bc6 {[%clk 0:02:59]} 6. Bd3 {[%clk 0:02:53]}  Nd7 {[%clk 0:03:00]} 7. Ned2 {[%clk 0:02:51]}  Ngf6 {[%clk 0:03:00]} 8. b3 {[%clk 0:02:51]}  b5 {[%clk 0:02:52]} 9. Bb2 {[%clk 0:02:48]}  b4 {[%clk 0:02:50]} 10. Qe2 {[%clk 0:02:47]}  Be7 {[%clk 0:02:43]} 11. Ne5 {[%clk 0:02:45]}  Bd5 {[%clk 0:02:40]} 12. f4 {[%clk 0:02:27]}  O-O {[%clk 0:02:37]} 13. O-O {[%clk 0:02:24]}  a5 {[%clk 0:02:34]} 14. Rad1 {[%clk 0:02:22]}  a4 {[%clk 0:02:23]} 15. Ndc4 {[%clk 0:02:03]}  axb3 {[%clk 0:02:19]} 16. axb3 {[%clk 0:02:02]}  g6 {[%clk 0:02:08]} 17. Ne3 {[%clk 0:01:57]}  c6 {[%clk 0:02:07]} 18. Nxd5 {[%clk 0:01:56]}  cxd5 {[%clk 0:02:07]} 19. f5 {[%clk 0:01:54]}  exf5 {[%clk 0:02:02]} 20. Nc6 {[%clk 0:01:53]}  Qb6 {[%clk 0:01:48]} 21. Nxe7+ {[%clk 0:01:50]}  Kg7 {[%clk 0:01:48]} 22. Rde1 {[%clk 0:01:47]}  Rae8 {[%clk 0:01:36]} 23. Qf2 {[%clk 0:01:39]}  Qd6 {[%clk 0:01:32]} 24. Nxf5+ {[%clk 0:01:33]}  gxf5 {[%clk 0:01:32]} 25. Qxf5 {[%clk 0:01:33]}  Rxe1 {[%clk 0:01:26]} 26. Rxe1 {[%clk 0:01:32]}  h6 {[%clk 0:01:13]} 27. Bc1 {[%clk 0:01:28]}  Re8 {[%clk 0:00:36]} 28. Rxe8 {[%clk 0:01:25]}  Nxe8 {[%clk 0:00:37]} 29. Qh7+ {[%clk 0:01:24]}  Kf8 {[%clk 0:00:37]} 30. Bxh6+ {[%clk 0:01:23]}  Ke7 {[%clk 0:00:38]} 31. Bg5+ {[%clk 0:01:23]}  Ndf6 {[%clk 0:00:35]} 32. Qf5 {[%clk 0:01:22]}  Kf8 {[%clk 0:00:33]} 33. Bb5 {[%clk 0:01:19]}  Ne4 {[%clk 0:00:29]} 34. Be3 {[%clk 0:01:12]}  N8f6 {[%clk 0:00:28]} 35. Bd3 {[%clk 0:01:03]}  Qc7 {[%clk 0:00:26]} 36. Qe5 {[%clk 0:00:58]}  Qc3 {[%clk 0:00:25]} 37. Bh6+ {[%clk 0:00:46]}  Kg8 {[%clk 0:00:24]} 38. h3 {[%clk 0:00:44]}  Qe1+ {[%clk 0:00:20]} 39. Kh2 {[%clk 0:00:43]}  Qh4 {[%clk 0:00:18]} 40. Qf4 {[%clk 0:00:42]}  Qh5 {[%clk 0:00:15]} 41. Bxe4 {[%clk 0:00:34]}  Nxe4 {[%clk 0:00:15]} 42. Qg4+ {[%clk 0:00:33]}  Qxg4 {[%clk 0:00:12]} 43. hxg4 {[%clk 0:00:33]}  f6 {[%clk 0:00:12]} 44. Bf4 {[%clk 0:00:28]}  Kf7 {[%clk 0:00:12]} 45. Kg1 {[%clk 0:00:28]}  Kg6 {[%clk 0:00:11]} 46. Kf1 {[%clk 0:00:28]}  Kf7 {[%clk 0:00:09]} 47. Ke2 {[%clk 0:00:28]}  Kg6 {[%clk 0:00:09]} 48. Kd3 {[%clk 0:00:24]}  Kf7 {[%clk 0:00:09]} 49. Bd2 {[%clk 0:00:23]}  Nf2+ {[%clk 0:00:09]} 50. Ke2 {[%clk 0:00:22]}  Nxg4 {[%clk 0:00:09]} 51. Bxb4 {[%clk 0:00:22]}  Ke6 {[%clk 0:00:09]} 52. c4 {[%clk 0:00:21]}  Nh6 {[%clk 0:00:09]} 53. Bd2 {[%clk 0:00:19]}  Nf5 {[%clk 0:00:09]} 54. Be3 {[%clk 0:00:19]}  Nd6 {[%clk 0:00:10]} 55. Kd3 {[%clk 0:00:19]}  Ne4 {[%clk 0:00:10]} 56. c5 {[%clk 0:00:19]}  Kd7 {[%clk 0:00:10]} 57. Bd2 {[%clk 0:00:18]}  Kc6 {[%clk 0:00:10]} 58. b4 {[%clk 0:00:19]}  Kb5 {[%clk 0:00:11]} 59. Be1 {[%clk 0:00:19]}  Ng5 {[%clk 0:00:09]} 60. Ke3 {[%clk 0:00:19]}  Ne6 {[%clk 0:00:09]} 61. Bc3 {[%clk 0:00:19]}  f5 {[%clk 0:00:10]} 62. Kf3 {[%clk 0:00:19]}  Kc6 {[%clk 0:00:10]} 63. Bb2 {[%clk 0:00:18]}  Kb5 {[%clk 0:00:11]} 64. Bc3 {[%clk 0:00:19]}  Kc6 {[%clk 0:00:11]} 65. g4 {[%clk 0:00:19]}  fxg4+ {[%clk 0:00:09]} 66. Kxg4 {[%clk 0:00:19]}  Nc7 {[%clk 0:00:09]} 67. Kf5 {[%clk 0:00:19]}  Nb5 {[%clk 0:00:10]} 68. Bb2 {[%clk 0:00:20]}  Nc7 {[%clk 0:00:11]} 69. Ke5 {[%clk 0:00:20]}  Nb5 {[%clk 0:00:12]} 70. Bc1 {[%clk 0:00:20]}  Nc7 {[%clk 0:00:12]} 71. Bf4 {[%clk 0:00:20]}  Nb5 {[%clk 0:00:13]} 72. Be3 {[%clk 0:00:19]}  Nc7 {[%clk 0:00:13]} 73. Kf6 {[%clk 0:00:20]}  Nb5 {[%clk 0:00:14]} 74. Ke7 {[%clk 0:00:20]}  Nc7 {[%clk 0:00:15]} 75. Bf4 {[%clk 0:00:19]}  Nb5 {[%clk 0:00:15]} 76. Be5 {[%clk 0:00:20]}  Nc3 {[%clk 0:00:15]} 77. Ke6 {[%clk 0:00:20]}  Nb5 {[%clk 0:00:16]} 78. Ke7 {[%clk 0:00:20]}  Nc3 {[%clk 0:00:16]} 79. Kd8 {[%clk 0:00:21]}  Nb5 {[%clk 0:00:16]} 80. Kc8 {[%clk 0:00:21]}  Nc3 {[%clk 0:00:16]} 81. Kb8 {[%clk 0:00:22]}  Nb5 {[%clk 0:00:16]} 82. Ka8 {[%clk 0:00:22]}  Nc3 {[%clk 0:00:16]} 83. Ka7 {[%clk 0:00:23]}  Nb5+ {[%clk 0:00:17]} 84. Ka6 {[%clk 0:00:23]}  Nc3 {[%clk 0:00:18]} 85. Ka5 {[%clk 0:00:23]}  Nb5 {[%clk 0:00:18]} 86. Bf6 {[%clk 0:00:22]}  Nc3 {[%clk 0:00:19]} 87. Bg5 {[%clk 0:00:22]}  Nb5 {[%clk 0:00:19]} 88. Be3 {[%clk 0:00:21]}  Nc3 {[%clk 0:00:19]} 89. Bd2 {[%clk 0:00:21]}  Nb5 {[%clk 0:00:20]} 90. Be1 {[%clk 0:00:18]}  Nxd4 {[%clk 0:00:20]} 91. Ka6 {[%clk 0:00:19]}  Nb5 {[%clk 0:00:21]} 92. Bf2 {[%clk 0:00:19]}  d4 {[%clk 0:00:19]} 93. Ka5 {[%clk 0:00:18]}  d3 {[%clk 0:00:17]} 94. Be3 {[%clk 0:00:18]}  Nc7 {[%clk 0:00:16]} 95. Ka4 {[%clk 0:00:18]}  Nb5 {[%clk 0:00:15]} 96. Bd2 {[%clk 0:00:18]}  Nd4 {[%clk 0:00:13]} 97. Ka3 {[%clk 0:00:17]}  Nf3 {[%clk 0:00:13]} 98. Bc3 {[%clk 0:00:17]}  Kb5 {[%clk 0:00:12]} 99. Kb3 {[%clk 0:00:17]}  Ng5 {[%clk 0:00:06]} 100. Bd2 {[%clk 0:00:16]}  Ne4 {[%clk 0:00:07]} 101. Be3 {[%clk 0:00:17]}  d2 {[%clk 0:00:06]} 102. Bxd2 {[%clk 0:00:17]}  Nxd2+ {[%clk 0:00:06]} 103. Kc2 {[%clk 0:00:17]}  Ne4 {[%clk 0:00:06]} 104. Kb3 {[%clk 0:00:17]}  Nxc5+ {[%clk 0:00:06]} 105. Ka3 {[%clk 0:00:17]}  Na6 {[%clk 0:00:06]} 106. Kb3 {[%clk 0:00:18]}  Nxb4 {[%clk 0:00:07]} 1/2-1/2


[Site "https://www.chess.com"]

[Event "Titled Tuesday Blitz January 03 Early 2023"]
[White "Salimova, Nurgyul"]
[Black "Padmini, Rout"]
[WhiteFideId "2915138"]
[BlackFideId "5029295"]
[WhiteElo "2391"]
[BlackElo "2375"]
[Result "1-0"]
[Round "11"]
[TimeControl "180+2"]
[Date "2023.01.03"]
[WhiteClock "0:01:08"]
[BlackClock "0:00:04"]

1. e4 {[%clk 0:03:00]}  e5 {[%clk 0:02:52]} 2. Nf3 {[%clk 0:03:00]}  Nc6 {[%clk 0:02:52]} 3. Bc4 {[%clk 0:02:50]}  Nf6 {[%clk 0:02:50]} 4. d3 {[%clk 0:02:47]}  h6 {[%clk 0:02:48]} 5. a4 {[%clk 0:02:44]}  d6 {[%clk 0:02:39]} 6. Nc3 {[%clk 0:02:42]}  g5 {[%clk 0:02:38]} 7. Nd5 {[%clk 0:02:41]}  Bg7 {[%clk 0:02:36]} 8. c3 {[%clk 0:02:38]}  Nxd5 {[%clk 0:02:35]} 9. Bxd5 {[%clk 0:02:37]}  Ne7 {[%clk 0:02:35]} 10. Ba2 {[%clk 0:02:33]}  c6 {[%clk 0:02:34]} 11. h4 {[%clk 0:02:29]}  g4 {[%clk 0:02:33]} 12. Nd2 {[%clk 0:02:28]}  h5 {[%clk 0:02:28]} 13. Nf1 {[%clk 0:02:27]}  Ng6 {[%clk 0:02:27]} 14. g3 {[%clk 0:02:09]}  f5 {[%clk 0:02:11]} 15. Ne3 {[%clk 0:01:49]}  f4 {[%clk 0:02:05]} 16. Nf5 {[%clk 0:01:50]}  Qf6 {[%clk 0:01:59]} 17. Qb3 {[%clk 0:01:44]}  Rb8 {[%clk 0:01:28]} 18. Nxd6+ {[%clk 0:01:37]}  Qxd6 {[%clk 0:01:20]} 19. Qf7+ {[%clk 0:01:38]}  Kd8 {[%clk 0:01:19]} 20. Qxg7 {[%clk 0:01:39]}  Rf8 {[%clk 0:00:51]} 21. Bd2 {[%clk 0:01:33]}  b5 {[%clk 0:00:40]} 22. d4 {[%clk 0:01:24]}  bxa4 {[%clk 0:00:34]} 23. O-O-O {[%clk 0:01:18]}  a3 {[%clk 0:00:05]} 24. dxe5 {[%clk 0:01:14]}  axb2+ {[%clk 0:00:04]} 25. Kc2 {[%clk 0:01:11]}  Qa3 {[%clk 0:00:04]} 26. Bxf4+ {[%clk 0:01:08]}  Ke8 {[%clk 0:00:04]} 27. Qxg6+ {[%clk 0:01:08]} 1-0


[Site "https://www.chess.com"]

[Event "Titled Tuesday Blitz January 03 Early 2023"]
[White "Leiva, Gianmarco"]
[Black "Kvaloy, Aksel Bu"]
[WhiteFideId "3804399"]
[BlackFideId "1528815"]
[WhiteElo "2392"]
[BlackElo "2321"]
[Result "0-1"]
[Round "11"]
[TimeControl "180+2"]
[Date "2023.01.03"]
[WhiteClock "0:00:09"]
[BlackClock "0:00:34"]

1. e4 {[%clk 0:02:58]}  e5 {[%clk 0:02:08]} 2. Nf3 {[%clk 0:02:41]}  Nf6 {[%clk 0:02:07]} 3. Nxe5 {[%clk 0:02:36]}  Nc6 {[%clk 0:02:06]} 4. Nxc6 {[%clk 0:02:27]}  dxc6 {[%clk 0:02:07]} 5. Nc3 {[%clk 0:02:17]}  Bc5 {[%clk 0:02:06]} 6. Be2 {[%clk 0:02:11]}  h5 {[%clk 0:02:03]} 7. h3 {[%clk 0:02:03]}  Qd4 {[%clk 0:02:02]} 8. O-O {[%clk 0:02:00]}  Ng4 {[%clk 0:02:02]} 9. hxg4 {[%clk 0:01:55]}  hxg4 {[%clk 0:02:03]} 10. g3 {[%clk 0:01:40]}  Qe5 {[%clk 0:01:52]} 11. Kg2 {[%clk 0:01:30]}  Bxf2 {[%clk 0:01:51]} 12. Kxf2 {[%clk 0:00:57]}  Rh2+ {[%clk 0:01:50]} 13. Ke3 {[%clk 0:00:58]}  Qxg3+ {[%clk 0:01:40]} 14. Bf3 {[%clk 0:00:58]}  gxf3 {[%clk 0:01:19]} 15. Rxf3 {[%clk 0:00:53]}  Qg5+ {[%clk 0:01:18]} 16. Kd3 {[%clk 0:00:45]}  Bg4 {[%clk 0:01:15]} 17. Kc4 {[%clk 0:00:38]}  Be6+ {[%clk 0:01:03]} 18. Nd5 {[%clk 0:00:22]}  cxd5+ {[%clk 0:01:02]} 19. Kc3 {[%clk 0:00:22]}  dxe4 {[%clk 0:01:00]} 20. d4 {[%clk 0:00:23]}  Qh5 {[%clk 0:00:41]} 21. Bf4 {[%clk 0:00:09]}  exf3 {[%clk 0:00:34]} 0-1


[Site "https://www.chess.com"]

[Event "Titled Tuesday Blitz January 03 Early 2023"]
[White "HSH1987"]
[Black "Erzhanov, Arman"]
[BlackFideId "4138821"]
[WhiteElo "2675"]
[BlackElo "2228"]
[Result "0-1"]
[Round "11"]
[TimeControl "180+2"]
[Date "2023.01.03"]
[WhiteClock "0:00:21"]
[BlackClock "0:01:16"]

1. Nf3 {[%clk 0:03:00]}  d6 {[%clk 0:02:59]} 2. g3 {[%clk 0:03:01]}  e5 {[%clk 0:02:58]} 3. Bg2 {[%clk 0:03:00]}  g6 {[%clk 0:02:57]} 4. O-O {[%clk 0:03:00]}  Bg7 {[%clk 0:02:54]} 5. c4 {[%clk 0:03:00]}  Nc6 {[%clk 0:02:52]} 6. Nc3 {[%clk 0:03:00]}  f5 {[%clk 0:02:37]} 7. Rb1 {[%clk 0:02:57]}  a5 {[%clk 0:02:31]} 8. a3 {[%clk 0:02:54]}  Nf6 {[%clk 0:02:32]} 9. b4 {[%clk 0:02:54]}  axb4 {[%clk 0:02:31]} 10. axb4 {[%clk 0:02:55]}  O-O {[%clk 0:02:29]} 11. b5 {[%clk 0:02:55]}  Ne7 {[%clk 0:02:24]} 12. d3 {[%clk 0:02:55]}  h6 {[%clk 0:02:22]} 13. Bb2 {[%clk 0:02:53]}  g5 {[%clk 0:02:20]} 14. Qb3 {[%clk 0:02:52]}  Be6 {[%clk 0:02:15]} 15. Ra1 {[%clk 0:02:51]}  Rb8 {[%clk 0:02:12]} 16. Nd2 {[%clk 0:02:49]}  f4 {[%clk 0:02:07]} 17. Nde4 {[%clk 0:02:47]}  Nf5 {[%clk 0:01:56]} 18. Nxf6+ {[%clk 0:02:44]}  Bxf6 {[%clk 0:01:56]} 19. Nd5 {[%clk 0:02:44]}  Bg7 {[%clk 0:01:54]} 20. Ra7 {[%clk 0:02:42]}  fxg3 {[%clk 0:01:51]} 21. hxg3 {[%clk 0:02:41]}  c6 {[%clk 0:01:51]} 22. Nc3 {[%clk 0:02:21]}  Nxg3 {[%clk 0:01:43]} 23. Rfa1 {[%clk 0:02:03]}  Nf5 {[%clk 0:01:43]} 24. bxc6 {[%clk 0:01:41]}  bxc6 {[%clk 0:01:41]} 25. Rb7 {[%clk 0:01:39]}  Nd4 {[%clk 0:01:38]} 26. Rxb8 {[%clk 0:01:36]}  Qxb8 {[%clk 0:01:35]} 27. Qxb8 {[%clk 0:01:34]}  Rxb8 {[%clk 0:01:35]} 28. Ra2 {[%clk 0:01:26]}  g4 {[%clk 0:01:36]} 29. Ne4 {[%clk 0:01:10]}  Nxe2+ {[%clk 0:01:33]} 30. Kf1 {[%clk 0:01:08]}  Nf4 {[%clk 0:01:34]} 31. Nxd6 {[%clk 0:01:05]}  Nxd3 {[%clk 0:01:30]} 32. Ba3 {[%clk 0:00:38]}  Rb1+ {[%clk 0:01:26]} 33. Ke2 {[%clk 0:00:36]}  Nf4+ {[%clk 0:01:27]} 34. Ke3 {[%clk 0:00:29]}  Nxg2+ {[%clk 0:01:27]} 35. Kd2 {[%clk 0:00:26]}  h5 {[%clk 0:01:23]} 36. Ne4 {[%clk 0:00:23]}  Bxc4 {[%clk 0:01:16]} 37. Rc2 {[%clk 0:00:21]}  Bd5 {[%clk 0:01:16]} 0-1


[Site "https://www.chess.com"]

[Event "Titled Tuesday Blitz January 03 Early 2023"]
[White "reevecanada"]
[Black "Wagner, Dennis"]
[BlackFideId "24650684"]
[WhiteElo "2477"]
[BlackElo "2595"]
[Result "1-0"]
[Round "11"]
[TimeControl "180+2"]
[Date "2023.01.03"]
[WhiteClock "0:01:21"]
[BlackClock "0:00:26"]

1. e4 {[%clk 0:02:58]}  c5 {[%clk 0:02:58]} 2. Nf3 {[%clk 0:02:57]}  d6 {[%clk 0:02:59]} 3. d4 {[%clk 0:02:57]}  cxd4 {[%clk 0:03:00]} 4. Nxd4 {[%clk 0:02:57]}  Nf6 {[%clk 0:03:00]} 5. Nc3 {[%clk 0:02:56]}  a6 {[%clk 0:03:01]} 6. Bg5 {[%clk 0:02:54]}  Nbd7 {[%clk 0:02:58]} 7. Qd2 {[%clk 0:02:52]}  e6 {[%clk 0:02:52]} 8. O-O-O {[%clk 0:02:49]}  Be7 {[%clk 0:02:52]} 9. Nb3 {[%clk 0:02:49]}  O-O {[%clk 0:02:49]} 10. f3 {[%clk 0:02:48]}  b5 {[%clk 0:02:42]} 11. h4 {[%clk 0:02:48]}  Re8 {[%clk 0:02:06]} 12. g4 {[%clk 0:02:40]}  Qc7 {[%clk 0:02:04]} 13. Kb1 {[%clk 0:02:38]}  b4 {[%clk 0:02:03]} 14. Ne2 {[%clk 0:02:35]}  a5 {[%clk 0:02:03]} 15. Ned4 {[%clk 0:02:32]}  Ne5 {[%clk 0:02:00]} 16. Be2 {[%clk 0:02:27]}  Bd7 {[%clk 0:01:58]} 17. Rhg1 {[%clk 0:02:20]}  a4 {[%clk 0:01:57]} 18. Nc1 {[%clk 0:02:15]}  Rab8 {[%clk 0:01:50]} 19. f4 {[%clk 0:02:14]}  Nxe4 {[%clk 0:01:45]} 20. Qe3 {[%clk 0:02:13]}  Nc3+ {[%clk 0:01:45]} 21. bxc3 {[%clk 0:02:02]}  bxc3+ {[%clk 0:01:46]} 22. Ncb3 {[%clk 0:02:00]}  axb3 {[%clk 0:01:37]} 23. Nxb3 {[%clk 0:01:56]}  Bxg5 {[%clk 0:01:31]} 24. hxg5 {[%clk 0:01:55]}  Ng6 {[%clk 0:01:18]} 25. Rh1 {[%clk 0:01:53]}  d5 {[%clk 0:01:16]} 26. Qh3 {[%clk 0:01:48]}  Ra8 {[%clk 0:01:05]} 27. f5 {[%clk 0:01:32]}  exf5 {[%clk 0:01:00]} 28. gxf5 {[%clk 0:01:30]}  Rxe2 {[%clk 0:00:43]} 29. Qxh7+ {[%clk 0:01:24]}  Kf8 {[%clk 0:00:44]} 30. f6 {[%clk 0:01:22]}  gxf6 {[%clk 0:00:38]} 31. gxf6 {[%clk 0:01:21]}  Bf5 {[%clk 0:00:32]} 32. Qh8+ {[%clk 0:01:20]}  Nxh8 {[%clk 0:00:26]} 33. Rxh8# {[%clk 0:01:21]} 1-0


[Site "https://www.chess.com"]

[Event "Titled Tuesday Blitz January 03 Early 2023"]
[White "Khumalo, Keith"]
[Black "TheKnightOfBosnia"]
[WhiteFideId "14319470"]
[WhiteElo "2099"]
[BlackElo "2481"]
[Result "1-0"]
[Round "11"]
[TimeControl "180+2"]
[Date "2023.01.03"]
[WhiteClock "0:02:14"]
[BlackClock "0:01:29"]

1. d4 {[%clk 0:03:00]}  Nf6 {[%clk 0:02:59]} 2. c4 {[%clk 0:02:50]}  e6 {[%clk 0:02:59]} 3. Nf3 {[%clk 0:02:49]}  Bb4+ {[%clk 0:03:00]} 4. Bd2 {[%clk 0:02:49]}  a5 {[%clk 0:03:00]} 5. g3 {[%clk 0:02:49]}  O-O {[%clk 0:03:00]} 6. Bg2 {[%clk 0:02:49]}  d5 {[%clk 0:03:01]} 7. a3 {[%clk 0:02:50]}  Bxd2+ {[%clk 0:02:59]} 8. Nbxd2 {[%clk 0:02:51]}  Bd7 {[%clk 0:02:48]} 9. Ne5 {[%clk 0:02:50]}  Be8 {[%clk 0:02:48]} 10. O-O {[%clk 0:02:50]}  Nc6 {[%clk 0:02:48]} 11. Ndf3 {[%clk 0:02:48]}  Nxe5 {[%clk 0:02:46]} 12. Nxe5 {[%clk 0:02:49]}  dxc4 {[%clk 0:02:41]} 13. Nxc4 {[%clk 0:02:45]}  Bc6 {[%clk 0:02:38]} 14. Bxc6 {[%clk 0:02:44]}  bxc6 {[%clk 0:02:39]} 15. Ne5 {[%clk 0:02:43]}  Qd5 {[%clk 0:02:38]} 16. Rc1 {[%clk 0:02:41]}  Rfd8 {[%clk 0:02:18]} 17. Nxc6 {[%clk 0:02:40]}  Rd7 {[%clk 0:02:15]} 18. e3 {[%clk 0:02:38]}  Ne4 {[%clk 0:02:08]} 19. Qc2 {[%clk 0:02:38]}  h6 {[%clk 0:02:00]} 20. f3 {[%clk 0:02:29]}  Ng5 {[%clk 0:01:59]} 21. e4 {[%clk 0:02:28]}  Qb5 {[%clk 0:01:55]} 22. a4 {[%clk 0:02:24]}  Qb6 {[%clk 0:01:53]} 23. h4 {[%clk 0:02:23]}  Nh7 {[%clk 0:01:48]} 24. Rf2 {[%clk 0:02:22]}  Nf6 {[%clk 0:01:44]} 25. Qc5 {[%clk 0:02:22]}  Ra6 {[%clk 0:01:39]} 26. Qxb6 {[%clk 0:02:17]}  Rxb6 {[%clk 0:01:39]} 27. Rc4 {[%clk 0:02:14]}  Ra6 {[%clk 0:01:29]} 28. Nb8 {[%clk 0:02:14]} 1-0


[Site "https://www.chess.com"]

[Event "Titled Tuesday Blitz January 03 Early 2023"]
[White "Skliarov, Viktor"]
[Black "Jovic, Stanoje"]
[WhiteFideId "14106736"]
[BlackFideId "905020"]
[WhiteElo "2383"]
[BlackElo "2075"]
[Result "0-1"]
[Round "11"]
[TimeControl "180+2"]
[Date "2023.01.03"]
[WhiteClock "0:00:06"]
[BlackClock "0:00:17"]

1. e4 {[%clk 0:03:00]}  c6 {[%clk 0:02:57]} 2. d4 {[%clk 0:03:01]}  d5 {[%clk 0:02:56]} 3. e5 {[%clk 0:03:01]}  c5 {[%clk 0:02:55]} 4. dxc5 {[%clk 0:03:01]}  e6 {[%clk 0:02:54]} 5. a3 {[%clk 0:02:57]}  Bxc5 {[%clk 0:02:52]} 6. b4 {[%clk 0:02:57]}  Be7 {[%clk 0:02:52]} 7. Qg4 {[%clk 0:02:55]}  g6 {[%clk 0:02:42]} 8. Bb2 {[%clk 0:02:49]}  Nc6 {[%clk 0:02:39]} 9. Nf3 {[%clk 0:02:43]}  Nh6 {[%clk 0:02:33]} 10. Qf4 {[%clk 0:02:43]}  Nf5 {[%clk 0:02:29]} 11. Bd3 {[%clk 0:02:27]}  g5 {[%clk 0:02:26]} 12. Qc1 {[%clk 0:02:11]}  g4 {[%clk 0:02:25]} 13. Nfd2 {[%clk 0:02:05]}  Nh4 {[%clk 0:02:07]} 14. O-O {[%clk 0:02:00]}  Ng6 {[%clk 0:02:06]} 15. f4 {[%clk 0:01:46]}  a5 {[%clk 0:01:49]} 16. b5 {[%clk 0:01:44]}  Qb6+ {[%clk 0:01:47]} 17. Kh1 {[%clk 0:01:43]}  Nd4 {[%clk 0:01:47]} 18. Nc3 {[%clk 0:01:37]}  a4 {[%clk 0:01:42]} 19. Qe1 {[%clk 0:01:22]}  Nh4 {[%clk 0:01:34]} 20. f5 {[%clk 0:01:06]}  Nhxf5 {[%clk 0:01:28]} 21. Bxf5 {[%clk 0:01:05]}  Nxf5 {[%clk 0:01:28]} 22. Rxf5 {[%clk 0:01:05]}  exf5 {[%clk 0:01:24]} 23. Nxd5 {[%clk 0:01:05]}  Qd8 {[%clk 0:01:20]} 24. Nxe7 {[%clk 0:00:34]}  Qxe7 {[%clk 0:01:17]} 25. Nc4 {[%clk 0:00:35]}  O-O {[%clk 0:01:07]} 26. Nb6 {[%clk 0:00:34]}  Be6 {[%clk 0:01:03]} 27. Nxa8 {[%clk 0:00:29]}  Rxa8 {[%clk 0:01:03]} 28. Rd1 {[%clk 0:00:20]}  Rc8 {[%clk 0:00:58]} 29. Qd2 {[%clk 0:00:15]}  Kg7 {[%clk 0:00:51]} 30. Bd4 {[%clk 0:00:14]}  Kg6 {[%clk 0:00:47]} 31. Be3 {[%clk 0:00:11]}  Qxa3 {[%clk 0:00:39]} 32. Qf2 {[%clk 0:00:10]}  Rc3 {[%clk 0:00:26]} 33. Bf4 {[%clk 0:00:07]}  g3 {[%clk 0:00:23]} 34. hxg3 {[%clk 0:00:06]}  Qc5 {[%clk 0:00:21]} 35. Qxc5 {[%clk 0:00:04]}  Rxc5 {[%clk 0:00:21]} 36. Ra1 {[%clk 0:00:05]}  Rxc2 {[%clk 0:00:19]} 37. Rxa4 {[%clk 0:00:04]}  Bd5 {[%clk 0:00:19]} 38. Kg1 {[%clk 0:00:05]}  Rxg2+ {[%clk 0:00:19]} 39. Kf1 {[%clk 0:00:05]}  Rb2 {[%clk 0:00:19]} 40. Ra5 {[%clk 0:00:04]}  Rxb5 {[%clk 0:00:19]} 41. Rxb5 {[%clk 0:00:04]}  Bc4+ {[%clk 0:00:19]} 42. Kf2 {[%clk 0:00:05]}  Bxb5 {[%clk 0:00:19]} 43. Ke3 {[%clk 0:00:05]}  Kh5 {[%clk 0:00:19]} 44. Kf3 {[%clk 0:00:03]}  Bc6+ {[%clk 0:00:19]} 45. Kf2 {[%clk 0:00:04]}  Kg4 {[%clk 0:00:20]} 46. Bh6 {[%clk 0:00:02]}  b5 {[%clk 0:00:19]} 47. Bd2 {[%clk 0:00:02]}  h5 {[%clk 0:00:18]} 48. Bc1 {[%clk 0:00:02]}  b4 {[%clk 0:00:17]} 49. Bd2 {[%clk 0:00:02]}  b3 {[%clk 0:00:18]} 50. Bc1 {[%clk 0:00:03]}  Bd5 {[%clk 0:00:17]} 51. Bb2 {[%clk 0:00:03]}  f4 {[%clk 0:00:17]} 52. gxf4 {[%clk 0:00:03]}  Kxf4 {[%clk 0:00:17]} 53. Bc3 {[%clk 0:00:02]}  h4 {[%clk 0:00:17]} 54. Bb2 {[%clk 0:00:02]}  h3 {[%clk 0:00:17]} 55. Kg1 {[%clk 0:00:01]}  Kg3 {[%clk 0:00:18]} 56. e6 {[%clk 0:00:01]}  h2+ {[%clk 0:00:18]} 57. Kf1 {[%clk 0:00:02]}  h1=Q+ {[%clk 0:00:18]} 58. Ke2 {[%clk 0:00:03]}  Qe4+ {[%clk 0:00:18]} 59. Kd2 {[%clk 0:00:03]}  Qc2+ {[%clk 0:00:18]} 60. Ke1 {[%clk 0:00:04]}  Qxb2 {[%clk 0:00:17]} 61. exf7 {[%clk 0:00:04]}  Qe5+ {[%clk 0:00:17]} 62. Kd2 {[%clk 0:00:04]}  Qf4+ {[%clk 0:00:17]} 63. Kc3 {[%clk 0:00:04]}  Qxf7 {[%clk 0:00:18]} 64. Kb2 {[%clk 0:00:05]}  Qf6+ {[%clk 0:00:18]} 65. Ka3 {[%clk 0:00:05]}  Qd6+ {[%clk 0:00:18]} 66. Kb2 {[%clk 0:00:06]}  Qe5+ {[%clk 0:00:18]} 67. Kb1 {[%clk 0:00:06]}  Be4+ {[%clk 0:00:17]} 68. Kc1 {[%clk 0:00:06]}  Qc3+ {[%clk 0:00:17]} 69. Kd1 {[%clk 0:00:06]}  Bf3# {[%clk 0:00:17]} 0-1


[Site "https://www.chess.com"]

[Event "Titled Tuesday Blitz January 03 Early 2023"]
[White "Renjith, Sravan"]
[Black "Hoffmann, Asa"]
[WhiteFideId "4306783"]
[BlackFideId "2001470"]
[WhiteElo "2172"]
[BlackElo "2185"]
[Result "1-0"]
[Round "11"]
[TimeControl "180+2"]
[Date "2023.01.03"]
[WhiteClock "0:02:06"]
[BlackClock "0:01:28"]

1. e4 {[%clk 0:02:59]}  d6 {[%clk 0:02:26]} 2. Ke2 {[%clk 0:02:42]}  Nf6 {[%clk 0:02:25]} 3. Nc3 {[%clk 0:02:42]}  c5 {[%clk 0:02:24]} 4. f3 {[%clk 0:02:41]}  Nc6 {[%clk 0:02:24]} 5. Kf2 {[%clk 0:02:41]}  g6 {[%clk 0:02:21]} 6. Nge2 {[%clk 0:02:41]}  Bg7 {[%clk 0:02:20]} 7. d3 {[%clk 0:02:42]}  O-O {[%clk 0:02:20]} 8. Be3 {[%clk 0:02:42]}  b6 {[%clk 0:02:18]} 9. Qd2 {[%clk 0:02:42]}  e6 {[%clk 0:02:18]} 10. Rd1 {[%clk 0:02:42]}  d5 {[%clk 0:02:18]} 11. exd5 {[%clk 0:02:38]}  exd5 {[%clk 0:02:18]} 12. d4 {[%clk 0:02:38]}  Re8 {[%clk 0:02:12]} 13. dxc5 {[%clk 0:02:36]}  Be6 {[%clk 0:02:03]} 14. Nd4 {[%clk 0:02:34]}  Ne5 {[%clk 0:01:59]} 15. Bb5 {[%clk 0:02:19]}  bxc5 {[%clk 0:01:54]} 16. Nxe6 {[%clk 0:02:16]}  Rxe6 {[%clk 0:01:53]} 17. Nxd5 {[%clk 0:02:15]}  Nxd5 {[%clk 0:01:51]} 18. Qxd5 {[%clk 0:02:14]}  Qh4+ {[%clk 0:01:39]} 19. g3 {[%clk 0:02:12]}  Qb4 {[%clk 0:01:33]} 20. Qxa8+ {[%clk 0:02:12]}  Bf8 {[%clk 0:01:28]} 21. Bh6 {[%clk 0:02:06]} 1-0


[Site "https://www.chess.com"]